lending/lending_fUSD_20250318
["ID","MTS","AMOUNT","RATE_DAILY","PERIOD"]
[356372897,1742339589055,-843.24,0.00040547,12]
[356372898,1742339589066,-418.89723883,0.00040547,12]
[356372899,1742339589076,-2465.62,0.00040547,12]
[356372900,1742339589085,-975.0,0.00040547,12]
[356372901,1742339589094,-609.77,0.00040547,12]
[356372902,1742339589104,-974.58,0.00040547,12]
[356372903,1742339589114,-1078.91,0.00040547,12]
[356372904,1742339589124,-2236.78,0.00040547,12]
[356372905,1742339589134,-1919.16,0.00040547,12]
[356372906,1742339589143,-2066.04,0.00040547,12]
[356372907,1742339589152,-1744.56,0.00040547,12]
[356372908,1742339589162,-924.09,0.00040547,12]
[356372909,1742339589171,-965.89,0.00040547,12]
[356372910,1742339589181,-2170.13,0.00040547,7]
[356372911,1742339589190,-630.53,0.00040547,12]
[356372912,1742339589200,-4236.85,0.00040547,12]
[356372913,1742339589210,-701.55,0.00040547,12]
[356372914,1742339589220,-2364.63,0.00040547,12]
[356372915,1742339589230,-2071.16,0.00040547,12]
[356372916,1742339589240,-940.24,0.00040547,12]
[356372917,1742339589250,-1084.3,0.00040547,12]
[356372918,1742339589259,-833.55,0.00040547,12]
[356372919,1742339589269,-1166.33,0.00040547,12]
[356372920,1742339589278,-1018.16,0.00040547,12]
[356372921,1742339589288,-3791.02,0.00040547,12]
[356372922,1742339589298,-722.87,0.00040547,12]
[356372923,1742339589308,-591.18,0.00040547,12]
[356372924,1742339589317,-627.35,0.00040547,12]
[356372925,1742339589327,-433.99,0.00040547,12]
[356372926,1742339589337,-2218.35,0.00040547,12]
[356372927,1742339589347,-2207.71,0.00040547,12]
[356372928,1742339589357,-1038.13,0.00040547,12]
[356372929,1742339589367,-7286.97,0.00040547,2]
[356372930,1742339589376,-4093.1,0.00040547,12]
[356372931,1742339589387,-662.54,0.00040547,12]
[356372932,1742339589396,-525.08834441,0.00040547,12]
[356372933,1742339589406,-617.61,0.00040547,12]
[356372934,1742339589416,-884.25,0.00040547,12]
[356372935,1742339589426,-590.8,0.00040547,12]
[356372936,1742339589436,-1249.76,0.00040547,12]
[356372937,1742339589445,-2314.16,0.00040547,12]
[356372938,1742339589455,-568.35,0.00040547,12]
[356372939,1742339589466,-605.74,0.00040547,12]
[356372940,1742339589475,-4019.27,0.00040547,12]
[356372941,1742339589485,-845.44,0.00040547,12]
[356372942,1742339589495,-1263.79,0.00040547,12]
[356372943,1742339589504,-500.0,0.00040547,12]
[356372944,1742339589514,-722.51,0.00040547,12]
[356372945,1742339589523,-582.04,0.00040547,12]
[356372946,1742339589532,-1473.86,0.00040547,12]
[356372947,1742339589542,-1361.67,0.00040547,12]
[356372948,1742339589553,-841.11,0.00040547,12]
[356372949,1742339589563,-713.87,0.00040547,12]
[356372950,1742339589573,-1912.63,0.00040547,12]
[356372951,1742339589583,-714.31,0.00040547,12]
[356372952,1742339589592,-635.53,0.00040547,12]
[356372953,1742339589602,-1883.04,0.00040547,12]
[356372954,1742339589612,-5988.8,0.00040547,12]
[356372955,1742339589622,-2180.97,0.00040547,10]
[356372956,1742339589632,-1955.72,0.00040547,12]
[356372957,1742339589642,-6906.57,0.00040547,12]
[356372958,1742339589651,-2131.38,0.00040547,12]
[356372959,1742339589661,-713.4,0.00040547,12]
[356372960,1742339589671,-1357.37,0.00040547,12]
[356372961,1742339589680,-758.94,0.00040547,12]
[356372962,1742339589690,-500.0,0.00040547,12]
[356372963,1742339589700,-517.02,0.00040547,12]
[356372964,1742339589711,-1496.75,0.00040547,12]
[356372965,1742339589721,-1214.53,0.00040547,12]
[356372966,1742339589731,-500.0,0.00040547,12]
[356372967,1742339589741,-2414.38,0.00040547,12]
[356372968,1742339589751,-1375.9,0.00040547,12]
[356372969,1742339589760,-500.0,0.00040547,12]
[356372970,1742339589770,-1974.79,0.00040547,12]
[356372971,1742339589780,-925.56,0.00040547,12]
[356372972,1742339589790,-712.94,0.00040547,12]
[356372973,1742339589804,-839.12,0.00040547,12]
[356372974,1742339589814,-767.88,0.00040547,12]
[356372975,1742339589823,-1067.84,0.00040547,12]
[356372976,1742339589834,-1426.33,0.00040547,12]
[356372977,1742339589846,-1432.86,0.00040547,12]
[356372978,1742339589856,-780.68,0.00040547,12]
[356372979,1742339589867,-1216.8,0.00040547,12]
[356372980,1742339589879,-1487.69,0.00040547,12]
[356372981,1742339589890,-1708.8,0.00040547,12]
[356372982,1742339589900,-500.0,0.00040547,12]
[356372983,1742339589910,-913.22,0.00040547,12]
[356372984,1742339589920,-1017.99,0.00040547,12]
[356372985,1742339589931,-1929.03,0.00040547,12]
[356372986,1742339589942,-2290.36,0.00040547,12]
[356372987,1742339589952,-902.37,0.00040547,12]
[356372988,1742339589961,-1430.23,0.00040547,12]
[356372989,1742339589974,-1072.64,0.00040547,12]
[356372990,1742339589984,-674.04,0.00040547,12]
[356372991,1742339589994,-1760.11,0.00040547,12]
[356372992,1742339590003,-1638.63,0.00040547,12]
[356372993,1742339590013,-682.57,0.00040547,12]
[356372994,1742339590023,-1045.11,0.00040547,12]
[356372995,1742339590034,-794.12,0.00040547,12]
[356372996,1742339590043,-500.0,0.00040547,12]
[356372997,1742339590053,-1729.5,0.00040547,12]
[356372998,1742339590063,-1395.45,0.00040547,12]
[356372999,1742339590072,-1432.26,0.00040547,12]
[356373000,1742339590082,-1231.14,0.00040547,12]
[356373001,1742339590092,-1130.18,0.00040547,12]
[356373002,1742339590102,-500.0,0.00040547,12]
[356373003,1742339590111,-1071.53,0.00040547,12]
[356373004,1742339590121,-10881.54,0.00040547,12]
[356373005,1742339590131,-940.53,0.00040547,12]
[356373006,1742339590140,-931.98,0.00040547,12]
[356373007,1742339590151,-643.93,0.00040547,12]
[356373008,1742339590161,-736.61,0.00040547,12]
[356373009,1742339590171,-1889.22,0.00040547,12]
[356373010,1742339590180,-500.0,0.00040547,12]
[356373011,1742339590190,-1912.43,0.00040547,12]
[356373012,1742339590200,-177.94503473,0.00040547,12]
[356373013,1742339590210,-867.89,0.00040547,12]
[356373014,1742339590222,-655.9,0.00040547,12]
[356373015,1742339590232,-3492.09,0.00040547,12]
[356373016,1742339590241,-8347.58,0.00040547,12]
[356373017,1742339590251,-982.97,0.00040547,12]
[356373018,1742339590260,-793.27,0.00040547,12]
[356373019,1742339590270,-2617.2,0.00040547,12]
[356373020,1742339590279,-500.0,0.00040547,12]
[356373021,1742339590289,-2613.79,0.00040547,12]
[356373022,1742339590298,-674.83,0.00040547,12]
[356373023,1742339590307,-1198.65,0.00040547,12]
[356373024,1742339590316,-1104.92,0.00040547,12]
[356373025,1742339590326,-736.65758565,0.00040547,12]
[356373026,1742339590335,-1351.56,0.00040547,12]
[356373027,1742339590345,-500.0,0.00040547,12]
[356373028,1742339590355,-573.24,0.00040547,12]
[356373029,1742339590364,-1155.96,0.00040547,12]
[356373030,1742339590374,-592.77,0.00040547,12]
[356373031,1742339590383,-819.5,0.00040547,12]
[356373032,1742339590393,-881.57,0.00040547,12]
[356373033,1742339590402,-733.05,0.00040547,12]
[356373034,1742339590412,-566.73,0.00040547,12]
[356373035,1742339590422,-678.37,0.00040547,12]
[356373036,1742339590431,-1747.47,0.00040547,12]
[356373037,1742339590442,-779.59,0.00040547,12]
[356373038,1742339590451,-700.61,0.00040547,12]
[356373039,1742339590460,-500.0,0.00040547,12]
[356373040,1742339590472,-6201.97,0.00040547,12]
[356373041,1742339590481,-2724.32,0.00040547,12]
[356373042,1742339590491,-673.71,0.00040547,12]
[356373043,1742339590500,-500.0,0.00040547,6]
[356373044,1742339590510,-634.03,0.00040547,12]
[356373045,1742339590519,-1388.66,0.00040547,12]
[356373046,1742339590528,-1201.66,0.00040547,12]
[356373047,1742339590538,-789.17,0.00040547,12]
[356373048,1742339590548,-765.41,0.00040547,12]
[356373049,1742339590557,-637.48,0.00040547,12]
[356373050,1742339590567,-1408.89,0.00040547,12]
[356373051,1742339590576,-500.0,0.00040547,12]
[356373052,1742339590586,-1079.25,0.00040547,12]
[356373053,1742339590595,-500.0,0.00040547,12]
[356373054,1742339590605,-629.47,0.00040547,12]
[356373055,1742339590614,-335.04531546,0.00040547,12]
[356373056,1742339590624,-500.0,0.00040547,12]
[356373057,1742339590634,-500.0,0.00040547,12]
[356373058,1742339590644,-2483.39,0.00040547,12]
[356373059,1742339590654,-818.98,0.00040547,12]
[356373060,1742339590663,-8678.86,0.00040547,12]
[356373061,1742339590672,-500.0,0.00040547,12]
[356373062,1742339590681,-500.0,0.00040547,12]
[356373063,1742339590691,-1387.5,0.00040547,12]
[356373064,1742339590700,-852.66,0.00040547,12]
[356373065,1742339590709,-609.81,0.00040547,12]
[356373066,1742339590719,-1940.56,0.00040547,12]
[356373067,1742339590729,-982.22,0.00040547,12]
[356373068,1742339590739,-5124.49,0.00040547,12]
[356373069,1742339590748,-848.28,0.00040547,12]
[356373070,1742339590758,-555.67,0.00040547,12]
[356373071,1742339590768,-500.0,0.00040547,12]
[356373072,1742339590777,-610.21,0.00040547,12]
[356373073,1742339590786,-797.64,0.00040547,12]
[356373074,1742339590796,-1404.74,0.00040547,12]
[356373075,1742339590805,-570.46,0.00040547,12]
[356373076,1742339590815,-626.53,0.00040547,12]
[356373077,1742339590829,-1037.27,0.00040547,12]
[356373078,1742339590839,-1010.64,0.00040547,12]
[356373079,1742339590849,-2051.57,0.00040547,12]
[356373080,1742339590858,-517.9,0.00040547,12]
[356373081,1742339590868,-698.57,0.00040547,12]
[356373082,1742339590878,-753.9,0.00040547,12]
[356373083,1742339590888,-810.35,0.00040547,12]
[356373084,1742339590898,-976.72,0.00040547,12]
[356373085,1742339590907,-816.08,0.00040547,12]
[356373086,1742339590917,-1763.99,0.00040547,12]
[356373087,1742339590926,-974.77,0.00040547,12]
[356373088,1742339590935,-807.5,0.00040547,12]
[356373089,1742339590945,-500.0,0.00040547,12]
[356373090,1742339590954,-1119.31,0.00040547,12]
[356373091,1742339590965,-1305.41,0.00040547,12]
[356373092,1742339590974,-764.52,0.00040547,12]
[356373093,1742339590983,-1054.67,0.00040547,12]
[356373094,1742339590992,-697.71,0.00040547,12]
[356373095,1742339591001,-784.0,0.00040547,12]
[356373096,1742339591011,-636.48,0.00040547,12]
[356373097,1742339591020,-871.68,0.00040547,12]
[356373098,1742339591030,-500.0,0.00040547,12]
[356373099,1742339591039,-1505.16,0.00040547,12]
[356373100,1742339591048,-500.0,0.00040547,12]
[356373101,1742339591057,-500.0,0.00040547,12]
[356373102,1742339591067,-3544.19,0.00040547,12]
[356373103,1742339591076,-500.0,0.00040547,12]
[356373104,1742339591085,-1054.74,0.00040547,12]
[356373105,1742339591095,-3375.24,0.00040547,12]
[356373106,1742339591104,-1877.16,0.00040547,12]
[356373107,1742339591113,-1691.18,0.00040547,12]
[356373108,1742339591122,-1000.0,0.00040548,4]
[356373109,1742339591132,-524.31716385,0.00040555,8]
[356373110,1742339591141,-258.42,0.00040606,2]
[356373111,1742339591151,-1000.0,0.00040685,4]
[356373112,1742339591161,-1657.99266,0.00040688,30]
[356373113,1742339591171,-151.031817,0.00040798,120]
[356373114,1742339591180,-171.32,0.00040812,2]
[356373115,1742339591190,-500.0,0.00040821,12]
[356373116,1742339591199,-660.95,0.00040821,12]
[356373117,1742339591208,-1089.18,0.00040821,12]
[356373118,1742339591218,-1280.18,0.00040821,12]
[356373119,1742339591228,-705.65,0.00040821,12]
[356373120,1742339591237,-839.95,0.00040821,12]
[356373121,1742339591247,-394.95793219,0.00040821,12]
[356373122,1742339591257,-586.59,0.00040821,12]
[356373123,1742339591266,-500.0,0.00040821,12]
[356373124,1742339591276,-659.86,0.00040821,12]
[356373125,1742339591286,-500.0,0.00040821,12]
[356373126,1742339591295,-781.58,0.00040821,12]
[356373127,1742339591304,-578.43,0.00040821,12]
[356373128,1742339591313,-716.41,0.00040821,12]
[356373129,1742339591322,-875.76,0.00040821,12]
[356373130,1742339591331,-1293.1,0.00040821,12]
[356373131,1742339591341,-554.73,0.00040821,12]
[356373132,1742339591350,-500.0,0.00040821,12]
[356373133,1742339591359,-500.0,0.00040821,12]
[356373134,1742339591368,-887.4,0.00040821,12]
[356373135,1742339591378,-933.35,0.00040821,12]
[356373136,1742339591387,-645.27,0.00040821,12]
[356373137,1742339591396,-1270.34,0.00040821,12]
[356373138,1742339591406,-635.6,0.00040821,12]
[356373139,1742339591416,-546.63,0.00040821,12]
[356373140,1742339591529,-500.0,0.00040821,12]
[356373141,1742339591539,-1007.61,0.00040821,12]
[356373142,1742339591548,-616.02,0.00040821,12]
[356373143,1742339591558,-686.76,0.00040821,12]
[356373144,1742339591568,-531.32,0.00040821,12]
[356373145,1742339591577,-601.48,0.00040821,12]
[356373146,1742339591586,-567.63,0.00040821,12]
[356373147,1742339591595,-963.46,0.00040821,12]
[356373148,1742339591605,-500.0,0.00040821,12]
[356373149,1742339591614,-815.63,0.00040821,12]
[356373150,1742339591623,-500.0,0.00040821,12]
[356373151,1742339591632,-500.37,0.00040821,12]
[356373152,1742339591641,-546.76,0.00040821,12]
[356373153,1742339591650,-500.0,0.00040821,12]
[356373154,1742339591659,-500.0,0.00040821,12]
[356373155,1742339591669,-599.5,0.00040821,12]
[356373156,1742339591678,-729.58,0.00040821,12]
[356373157,1742339591687,-922.39,0.00040821,12]
[356373158,1742339591696,-1163.14,0.00040821,12]
[356373159,1742339591706,-875.92,0.00040821,30]
[356373160,1742339591715,-750.87,0.00040821,12]
[356373161,1742339591725,-1410.05,0.00040821,12]
[356373162,1742339591735,-510.0,0.00040821,12]
[356373163,1742339591745,-541.9,0.00040821,12]
[356373164,1742339591754,-2100.21,0.00040821,12]
[356373165,1742339591763,-819.72,0.00040821,12]
[356373166,1742339591772,-500.0,0.00040821,12]
[356373167,1742339591782,-868.85,0.00040821,12]
[356373168,1742339591791,-163.344036,0.00040821,12]
[356373169,1742339591803,-500.0,0.00040821,12]
[356373170,1742339591812,-832.99,0.00040821,12]
[356373171,1742339591823,-500.0,0.00040821,12]
[356373172,1742339591833,-1487.67,0.00040821,12]
[356373173,1742339591843,-1565.380344,0.00040821,12]
[356373174,1742339591852,-500.0,0.00040821,12]
[356373175,1742339591861,-156.823057,0.00040821,12]
[356373176,1742339591871,-728.98,0.00040821,12]
[356373177,1742339591880,-915.45,0.00040821,12]
[356373178,1742339591889,-523.14,0.00040821,12]
[356373179,1742339591899,-171.14412494,0.00040821,12]
[356373180,1742339591908,-500.0,0.00040821,12]
[356373181,1742339591918,-415.53198,0.00040821,12]
[356373182,1742339591927,-571.54,0.00040821,12]
[356373183,1742339591937,-547.0,0.00040821,12]
[356373184,1742339591946,-1579.021524,0.00040821,12]
[356373185,1742339591955,-540.14,0.00040821,12]
[356373186,1742339591966,-507.06,0.00040821,12]
[356373187,1742339591975,-500.0,0.00040821,12]
[356373188,1742339591984,-1406.95,0.00040821,12]
[356373189,1742339591994,-1265.92,0.00040821,12]
[356373190,1742339592004,-583.92,0.00040821,12]
[356373191,1742339592013,-819.59,0.00040821,12]
[356373192,1742339592023,-500.0,0.00040821,12]
[356373193,1742339592032,-536.50896907,0.00040821,12]
[356373194,1742339592041,-1112.86,0.00040821,12]
[356373195,1742339592051,-500.0,0.00040821,12]
[356373196,1742339592061,-849.05,0.00040821,12]
[356373197,1742339592070,-610.12,0.00040821,12]
[356373198,1742339592079,-500.0,0.00040821,12]
[356373199,1742339592088,-966.8,0.00040821,12]
[356373200,1742339592098,-562.17,0.00040821,12]
[356373201,1742339592107,-500.0,0.00040821,12]
[356373202,1742339592116,-565.83,0.00040821,12]
[356373203,1742339592126,-897.12,0.00040821,12]
[356373204,1742339592135,-317.70786091,0.00040821,12]
[356373205,1742339592144,-588.08,0.00040821,12]
[356373206,1742339592154,-539.17,0.00040821,12]
[356373207,1742339592163,-500.0,0.00040821,12]
[356373208,1742339592170,-2686.86,0.00040821,12]
[356373209,1742339592179,-956.37,0.00040821,12]
[356373210,1742339592188,-1521.69,0.00040821,7]
[356373211,1742339592198,-914.58,0.00040821,12]
[356373212,1742339592207,-500.0,0.00040821,12]
[356373213,1742339592218,-537.65,0.00040821,12]
[356373214,1742339592227,-1313.1,0.00040821,12]
[356373215,1742339592236,-894.12,0.00040821,12]
[356373216,1742339592245,-523.64,0.00040821,12]
[356373217,1742339592255,-500.0,0.00040821,12]
[356373218,1742339592264,-523.91,0.00040821,12]
[356373219,1742339592273,-845.67,0.00040821,12]
[356373220,1742339592283,-500.0,0.00040821,12]
[356373221,1742339592292,-1156.08,0.00040821,12]
[356373222,1742339592301,-510.37,0.00040821,12]
[356373223,1742339592311,-655.83,0.00040821,12]
[356373224,1742339592321,-1175.67,0.00040821,12]
[356373225,1742339592331,-675.44,0.00040821,12]
[356373226,1742339592340,-584.29,0.00040821,12]
[356373227,1742339592349,-1360.65,0.00040821,12]
[356373228,1742339592359,-535.37,0.00040821,12]
[356373229,1742339592368,-940.73,0.00040821,12]
[356373230,1742339592377,-661.64,0.00040821,12]
[356373231,1742339592387,-628.6,0.00040821,12]
[356373232,1742339592396,-872.38,0.00040821,12]
[356373233,1742339592405,-671.95,0.00040821,12]
[356373234,1742339592415,-589.35,0.00040821,12]
[356373235,1742339592424,-500.0,0.00040821,12]
[356373236,1742339592433,-500.0,0.00040821,12]
[356373237,1742339592442,-2111.58,0.00040821,12]
[356373238,1742339592451,-1118.44,0.00040821,12]
[356373239,1742339592460,-952.51,0.00040821,12]
[356373240,1742339592469,-1141.77,0.00040821,12]
[356373241,1742339592479,-509.9,0.00040821,12]
[356373242,1742339592489,-786.29,0.00040821,12]
[356373243,1742339592499,-885.74,0.00040821,12]
[356373244,1742339592508,-853.02,0.00040821,12]
[356373245,1742339592518,-500.0,0.00040821,12]
[356373246,1742339592528,-930.16,0.00040821,12]
[356373247,1742339592537,-554.71,0.00040821,12]
[356373248,1742339592547,-1096.04,0.00040821,12]
[356373249,1742339592556,-534.99,0.00040821,12]
[356373250,1742339592566,-500.0,0.00040821,12]
[356373251,1742339592576,-669.21,0.00040821,12]
[356373252,1742339592586,-2116.57,0.00040821,12]
[356373253,1742339592595,-1273.18,0.00040821,12]
[356373254,1742339592604,-662.07,0.00040821,12]
[356373255,1742339592613,-824.59,0.00040821,12]
[356373256,1742339592623,-1001.65,0.00040821,12]
[356373257,1742339592633,-865.19,0.00040821,12]
[356373258,1742339592642,-569.57,0.00040821,12]
[356373259,1742339592652,-850.25,0.00040821,12]
[356373260,1742339592662,-2025.31,0.00040821,12]
[356373261,1742339592671,-1034.97,0.00040821,12]
[356373262,1742339592680,-1125.43,0.00040821,12]
[356373263,1742339592690,-736.13,0.00040821,12]
[356373264,1742339592699,-500.0,0.00040821,12]
[356373265,1742339592709,-705.75,0.00040821,12]
[356373266,1742339592719,-1168.81,0.00040821,12]
[356373267,1742339592729,-425.60949827,0.00040821,12]
[356373268,1742339592739,-909.53,0.00040821,12]
[356373269,1742339592748,-1214.66,0.00040821,12]
[356373270,1742339592758,-750.56,0.00040821,12]
[356373271,1742339592768,-999.43,0.00040821,12]
[356373272,1742339592777,-912.96,0.00040821,12]
[356373273,1742339592787,-628.87,0.00040821,12]
[356373274,1742339592798,-1022.31,0.00040821,12]
[356373275,1742339592810,-664.59,0.00040821,12]
[356373276,1742339592819,-970.21,0.00040821,12]
[356373277,1742339592829,-1388.92,0.00040821,12]
[356373278,1742339592839,-605.69,0.00040821,12]
[356373279,1742339592848,-1253.42,0.00040821,12]
[356373280,1742339592857,-500.0,0.00040821,12]
[356373281,1742339592867,-1024.33,0.00040821,12]
[356373282,1742339592877,-603.22,0.00040821,12]
[356373283,1742339592888,-747.21,0.00040821,12]
[356373284,1742339592897,-500.0,0.00040821,12]
[356373285,1742339592908,-1242.02,0.00040821,12]
[356373286,1742339592917,-843.17,0.00040821,12]
[356373287,1742339592927,-535.11,0.00040821,12]
[356373288,1742339592937,-532.91,0.00040821,12]
[356373289,1742339592947,-536.51,0.00040821,7]
[356373290,1742339592957,-864.22,0.00040821,12]
[356373291,1742339592967,-500.0,0.00040821,12]
[356373292,1742339592978,-629.99245197,0.00040821,12]
[356373293,1742339592987,-1425.59,0.00040821,12]
[356373294,1742339592997,-838.26,0.00040821,12]
[356373295,1742339593006,-1035.77,0.00040821,12]
[356373296,1742339593016,-581.73107365,0.00040821,12]
[356373297,1742339593025,-1119.9,0.00040821,12]
[356373298,1742339593035,-940.64,0.00040821,12]
[356373299,1742339593044,-500.0,0.00040821,12]
[356373300,1742339593053,-757.19,0.00040821,12]
[356373301,1742339593063,-339.03114977,0.00040821,12]
[356373302,1742339593072,-1602.15,0.00040821,12]
[356373303,1742339593081,-1002.8,0.00040821,12]
[356373304,1742339593091,-1331.13,0.00040821,12]
[356373305,1742339593100,-1198.43,0.00040821,12]
[356373306,1742339593109,-233.15328935,0.00040821,12]
[356373307,1742339593120,-649.81,0.00040821,12]
[356373308,1742339593129,-2598.97,0.00040821,12]
[356373309,1742339593139,-999.15,0.00040821,12]
[356373310,1742339593148,-3644.21,0.00040821,12]
[356373311,1742339593158,-1387.99,0.00040821,12]
[356373312,1742339593167,-843.24,0.00040821,12]
[356373313,1742339593176,-2465.62,0.00040821,12]
[356373314,1742339593186,-975.0,0.00040821,12]
[356373315,1742339593195,-609.77,0.00040821,12]
[356373316,1742339593204,-974.58,0.00040821,12]
[356373317,1742339593213,-1078.91,0.00040821,12]
[356373318,1742339593222,-2236.78,0.00040821,12]
[356373319,1742339593230,-1919.16,0.00040821,12]
[356373320,1742339593238,-2066.04,0.00040821,12]
[356373321,1742339593247,-1744.56,0.00040821,12]
[356373322,1742339593255,-924.09,0.00040821,12]
[356373323,1742339593265,-965.89,0.00040821,12]
[356373324,1742339593274,-2170.13,0.00040821,7]
[356373325,1742339593283,-630.53,0.00040821,12]
[356373326,1742339593293,-4236.85,0.00040821,12]
[356373327,1742339593303,-701.55,0.00040821,12]
[356373328,1742339593312,-2364.63,0.00040821,12]
[356373329,1742339593321,-2071.16,0.00040821,12]
[356373330,1742339593331,-940.24,0.00040821,12]
[356373331,1742339593340,-1084.3,0.00040821,12]
[356373332,1742339593349,-833.55,0.00040821,12]
[356373333,1742339593357,-1166.33,0.00040821,12]
[356373334,1742339593366,-1018.16,0.00040821,12]
[356373335,1742339593375,-3791.02,0.00040821,12]
[356373336,1742339593385,-722.87,0.00040821,12]
[356373337,1742339593394,-591.18,0.00040821,12]
[356373338,1742339593403,-627.35,0.00040821,12]
[356373339,1742339593413,-433.99,0.00040821,12]
[356373340,1742339593422,-2218.35,0.00040821,12]
[356373341,1742339593431,-2207.71,0.00040821,12]
[356373342,1742339593440,-1038.13,0.00040821,12]
[356373343,1742339593450,-7286.97,0.00040821,2]
[356373344,1742339593459,-4093.1,0.00040821,12]
[356373345,1742339593470,-662.54,0.00040821,12]
[356373346,1742339593479,-617.61,0.00040821,12]
[356373347,1742339593489,-884.25,0.00040821,12]
[356373348,1742339593498,-590.8,0.00040821,12]
[356373349,1742339593508,-1249.76,0.00040821,12]
[356373350,1742339593517,-568.35,0.00040821,12]
[356373351,1742339593527,-2314.16,0.00040821,12]
[356373352,1742339593537,-605.74,0.00040821,12]
[356373353,1742339593546,-4019.27,0.00040821,12]
[356373354,1742339593555,-845.44,0.00040821,12]
[356373355,1742339593564,-1263.79,0.00040821,12]
[356373356,1742339593573,-303.50481765,0.00040821,12]
[356373357,1742339593582,-722.51,0.00040821,12]
[356373358,1742339593591,-582.04,0.00040821,12]
[356373359,1742339593601,-1473.86,0.00040821,12]
[356373360,1742339593610,-1361.67,0.00040821,12]
[356373361,1742339593619,-841.11,0.00040821,12]
[356373362,1742339593629,-713.87,0.00040821,12]
[356373363,1742339593639,-1912.63,0.00040821,12]
[356373364,1742339593648,-714.31,0.00040821,12]
[356373365,1742339593660,-635.53,0.00040821,12]
[356373366,1742339593670,-1883.04,0.00040821,12]
[356373367,1742339593680,-5988.8,0.00040821,12]
[356373368,1742339593689,-2180.97,0.00040821,10]
[356373369,1742339593699,-1955.72,0.00040821,12]
[356373370,1742339593708,-6906.57,0.00040821,12]
[356373371,1742339593719,-2131.38,0.00040821,12]
[356373372,1742339593728,-713.4,0.00040821,12]
[356373373,1742339593738,-1357.37,0.00040821,12]
[356373374,1742339593747,-758.94,0.00040821,12]
[356373375,1742339593757,-500.0,0.00040821,12]
[356373376,1742339593768,-517.02,0.00040821,12]
[356373377,1742339593777,-1496.75,0.00040821,12]
[356373378,1742339593786,-1214.53,0.00040821,12]
[356373379,1742339593796,-500.0,0.00040821,12]
[356373380,1742339593805,-2414.38,0.00040821,12]
[356373381,1742339593818,-1375.9,0.00040821,12]
[356373382,1742339593827,-500.0,0.00040821,12]
[356373383,1742339593837,-1974.79,0.00040821,12]
[356373384,1742339593847,-925.56,0.00040821,12]
[356373385,1742339593857,-712.94,0.00040821,12]
[356373386,1742339593866,-839.12,0.00040821,12]
[356373387,1742339593876,-767.88,0.00040821,12]
[356373388,1742339593887,-1067.84,0.00040821,12]
[356373389,1742339593896,-1426.33,0.00040821,12]
[356373390,1742339593907,-1432.86,0.00040821,12]
[356373391,1742339593916,-780.68,0.00040821,12]
[356373392,1742339593926,-1216.8,0.00040821,12]
[356373393,1742339593936,-1487.69,0.00040821,12]
[356373394,1742339593945,-1708.8,0.00040821,12]
[356373395,1742339593955,-500.0,0.00040821,12]
[356373396,1742339593966,-913.22,0.00040821,12]